bitfinex/quotes_ETHUSD_20251212
["timestamp","ask_amount","ask_price","bid_price","bid_amount"]
[1765552070243,1.21345062,3210.3,3208.7,0.4637]
[1765552070477,1.21345062,3210.3,3208.8,3.11642981]
[1765552070478,0.58047529,3210.1,3208.8,3.11642981]
[1765552070674,0.58047529,3210.1,3208.9,0.516]
[1765552070948,0.405504,3210.0,3208.1,0.6731214]
[1765552071143,0.405504,3210.0,3207.5,0.58047529]
[1765552071144,0.505504,3210.0,3208.2,0.516]
[1765552071362,0.405504,3210.0,3208.2,3.63300369]
[1765552071577,0.405504,3209.8,3208.2,0.516]
[1765552071779,0.405504,3209.8,3208.2,3.63293331]
[1765552071987,0.58047529,3210.1,3208.2,0.9797]
[1765552071988,0.405504,3210.0,3208.2,0.9797]
[1765552072199,0.405504,3210.0,3208.4,3.11680761]
[1765552072380,9.34608552,3209.9,3208.5,0.1805]
[1765552072559,1.92291736,3209.8,3208.5,0.1805]
[1765552072760,1.88885267,3209.8,3208.5,6.87763557]
[1765552072990,0.98597929,3209.8,3208.5,0.6442]
[1765552073171,1.02004398,3209.8,3208.5,0.6442]
[1765552073377,1.02004398,3209.8,3208.6,0.4637]
[1765552074075,1.02004398,3209.8,3208.1,3.12008081]
[1765552074318,0.405504,3209.6,3208.1,0.003]
[1765552074526,0.98597929,3209.4,3208.2,0.516]
[1765552074668,0.405504,3209.2,3208.2,0.516]
[1765552075217,0.405504,3209.0,3208.2,0.516]
[1765552075368,0.43956869,3209.0,3208.2,0.516]
[1765552076408,0.405504,3208.8,3208.1,0.003]
[1765552076588,0.98597929,3208.6,3208.1,0.003]
[1765552076789,0.405504,3208.4,3208.1,0.003]
[1765552078614,0.98597929,3208.2,3208.1,0.003]
[1765552079205,1.08597929,3208.2,3208.1,0.003]
[1765552079822,1.13597929,3208.2,3208.1,0.003]
[1765552079991,1.08597929,3208.2,3208.1,0.003]
[1765552080200,1.37783762,3208.2,3208.1,0.003]
[1765552080594,3.11681835,3208.4,3208.1,0.003]
[1765552080806,0.58047529,3208.3,3208.1,0.003]
[1765552081007,1.03332296,3209.3,3208.1,0.9827]
[1765552081008,1.08332296,3209.3,3208.1,0.9827]
[1765552081326,0.58047529,3209.1,3208.1,0.9827]
[1765552081527,6.23111194,3209.7,3208.2,0.4637]
[1765552081835,6.23111194,3209.7,3208.1,0.519]
[1765552081836,0.1,3209.6,3208.1,0.003]
[1765552081987,0.405504,3209.5,3208.1,0.003]
[1765552082182,0.1,3209.6,3208.1,0.003]
[1765552082183,0.03406469,3209.2,3208.2,0.4637]
[1765552082412,0.03406469,3209.6,3208.2,0.4637]
[1765552082614,6.23150022,3209.5,3208.3,6.233831]
[1765552082783,0.03406469,3210.0,3208.4,0.6697531]
[1765552082990,0.03406469,3210.0,3208.5,0.4637]
[1765552083213,0.03406469,3210.0,3208.6,0.516]
[1765552083451,6.26461841,3210.0,3208.6,0.516]
[1765552083618,0.58047529,3209.9,3208.7,0.4637]
[1765552083819,0.68450937,3209.9,3208.7,0.4637]
[1765552084026,0.03406469,3209.5,3208.8,0.516]
[1765552084194,0.405504,3209.3,3208.1,0.519]
[1765552084616,0.98597929,3209.1,3208.1,0.519]
[1765552084817,0.405504,3208.7,3208.1,0.519]
[1765552085333,0.58047529,3209.1,3208.1,0.9827]
[1765552085833,0.58047529,3209.1,3208.2,0.4637]
[1765552086038,0.405504,3209.0,3208.2,0.4637]
[1765552086212,1.12731021,3209.0,3208.2,0.4637]
[1765552086391,1.12731021,3209.0,3208.1,0.003]
[1765552086590,0.405504,3208.4,3208.1,0.003]
[1765552087096,1.09647529,3208.5,3208.1,0.003]
[1765552087097,0.455504,3208.2,3208.1,0.003]
[1765552088106,0.555504,3208.2,3208.1,0.003]
[1765552088306,9.91606529,3208.2,3208.1,0.003]
[1765552088529,16.33410629,3208.2,3208.1,0.003]
[1765552088726,19.96711894,3208.2,3208.1,0.003]
[1765552089032,10.86228894,3208.2,3208.1,0.003]
[1765552089238,30.0,3207.9,3207.4,0.70506198]
[1765552089531,0.405504,3207.5,3207.4,0.70506198]
[1765552089931,0.405504,3206.8,3206.0,0.002]
[1765552090430,0.05,3207.5,3206.0,0.002]
[1765552090616,0.05,3207.5,3206.2,0.1325]
[1765552090617,0.58047529,3207.2,3206.2,0.1325]
[1765552090818,0.405504,3207.1,3206.2,0.1325]
[1765552091020,0.405504,3206.9,3206.0,0.002]
[1765552091741,0.405504,3206.5,3206.0,0.002]
[1765552091901,0.505504,3206.1,3206.0,0.002]
[1765552092103,0.89441497,3207.2,3206.0,0.002]
[1765552092330,0.1,3206.1,3206.0,0.002]
[1765552092534,0.405504,3206.3,3206.0,0.002]
[1765552092732,0.405504,3206.1,3206.0,0.002]
[1765552093929,3.52422338,3206.5,3206.0,0.002]
[1765552094131,3.11876247,3206.4,3206.0,0.002]
[1765552094642,0.405504,3206.1,3206.0,0.002]
[1765552095148,0.1,3206.4,3206.0,0.002]
[1765552095465,0.405504,3206.3,3206.0,0.002]
[1765552095625,0.405504,3206.6,3206.0,0.002]
[1765552095825,3.1184707,3206.7,3206.0,0.002]
[1765552096019,3.1184707,3206.7,3206.1,0.4637]
[1765552096630,6.23499702,3207.7,3206.6,0.1805]
[1765552096954,0.6750997,3207.6,3206.6,0.1805]
[1765552097249,0.6750997,3207.6,3206.0,0.002]
[1765552097446,16.236058,3207.2,3206.0,0.002]
[1765552097747,0.6750997,3207.6,3206.0,0.002]
[1765552097748,0.455504,3206.9,3206.0,0.002]
[1765552097950,0.405504,3206.7,3206.0,0.002]
[1765552098156,0.98597929,3206.8,3206.0,0.002]
[1765552098322,0.405504,3206.8,3206.0,0.002]
[1765552098510,0.566,3207.1,3206.0,0.002]
[1765552098708,0.405504,3206.8,3206.0,0.002]
[1765552099841,0.05,3206.7,3206.0,0.002]
[1765552100012,0.405504,3206.8,3206.0,0.002]
[1765552100640,6.2369414,3206.7,3206.0,0.002]
[1765552100814,0.405504,3206.6,3206.0,0.002]
[1765552101012,3.11772955,3207.5,3206.6,0.1824]
[1765552101233,0.37928293,3207.4,3206.6,0.1824]
[1765552101541,6.23542245,3207.5,3206.2,0.1824]
[1765552101730,0.58047529,3207.4,3206.0,0.4557]
[1765552101930,0.405504,3207.1,3206.0,0.518]
[1765552102343,0.405504,3207.1,3206.0,0.002]
[1765552102640,0.58047529,3206.9,3206.0,0.002]
[1765552102838,1.39900522,3206.8,3206.0,0.002]
[1765552103027,1.39900522,3206.8,3206.0,0.4557]
[1765552103844,0.405504,3206.8,3206.0,0.4557]
[1765552104042,0.405504,3206.9,3206.0,0.4557]
[1765552104719,6.2367469,3206.8,3206.0,0.4557]
[1765552105027,6.2367469,3206.8,3206.1,0.516]
[1765552106245,0.98597929,3206.7,3206.1,0.516]
[1765552106416,0.405504,3206.5,3206.1,0.516]
[1765552106614,0.405504,3206.6,3206.1,0.516]
[1765552106844,6.23733042,3206.5,3206.1,0.516]
[1765552107624,17.05459529,3206.4,3206.0,0.002]
[1765552107828,1.08597929,3206.4,3206.0,0.002]
[1765552108146,0.405504,3206.2,3206.0,0.002]
[1765552108825,3.5245583,3206.1,3206.0,0.002]
[1765552109410,4.10503359,3206.1,3206.0,0.002]
[1765552109614,4.25303359,3206.1,3206.0,0.002]
[1765552109815,4.10503359,3206.1,3206.0,0.002]
[1765552110030,4.78109136,3206.1,3206.0,0.002]
[1765552111437,3.5245583,3206.1,3206.0,0.002]
[1765552112028,4.10503359,3206.1,3206.0,0.002]
[1765552112347,0.405504,3205.6,3204.9,0.003]
[1765552112934,6.23927624,3205.5,3204.9,0.003]
[1765552113129,7.22070414,3205.5,3204.9,0.003]
[1765552113474,0.405504,3205.4,3204.9,0.003]
[1765552114118,3.11944349,3205.7,3205.0,0.4858]
[1765552114449,3.1193825,3205.8,3205.0,0.4858]
[1765552114450,4.16309022,3206.3,3205.3,0.1845]
[1765552114651,0.05,3205.2,3204.9,0.003]
[1765552114849,10.12343,3206.2,3204.9,0.003]
[1765552114850,6.2381086,3206.1,3205.0,0.4858]
[1765552115053,3.3505335,3206.8,3205.1,0.1845]
[1765552115054,0.1,3206.5,3205.1,0.1845]
[1765552115236,0.58047529,3206.3,3205.1,0.1845]
[1765552115429,0.58047529,3206.3,3205.2,0.516]
[1765552115644,3.11876247,3206.4,3205.2,0.516]
[1765552115961,3.15252008,3206.8,3205.3,0.4858]
[1765552116156,0.03406469,3206.8,3205.3,0.4858]
[1765552116472,0.03406469,3206.8,3206.7,0.1845]
[1765552116620,0.03406469,3206.8,3206.6,0.516]
[1765552116949,0.03406469,3206.8,3206.7,0.1845]
[1765552117149,0.03406469,3206.8,3206.7,0.6703]
[1765552118057,0.03406469,3206.8,3206.7,3.7887707]
[1765552118256,3.11731078,3207.9,3206.7,7.64958051]
[1765552118467,9.35193234,3207.9,3206.8,1.0008]
[1765552118762,0.405504,3207.8,3206.9,0.515]
[1765552118962,0.405504,3207.6,3206.4,0.1845]
[1765552119265,0.405504,3207.6,3205.6,3.11946032]
[1765552119266,0.405504,3207.4,3205.6,3.11946032]
[1765552119470,0.405504,3207.4,3206.1,0.1845]
[1765552119832,0.405504,3207.4,3206.2,1.0008]
[1765552120028,0.405504,3207.4,3206.4,3.11874659]
[1765552120230,0.58047529,3207.6,3206.3,0.4858]
[1765552120857,0.63047529,3207.6,3206.3,0.4858]
[1765552121062,9.35337033,3207.4,3206.4,0.515]
[1765552121630,9.35337033,3207.4,3206.4,1.0008]
[1765552121832,0.405504,3207.3,3206.4,0.4858]
[1765552122158,0.405504,3207.3,3206.5,0.516]
[1765552122364,0.98597929,3207.3,3206.5,0.516]
[1765552122560,0.405504,3207.1,3206.5,0.516]
[1765552122966,9.35453694,3207.0,3206.5,0.516]
[1765552123145,9.35453694,3207.0,3206.6,0.515]
[1765552123346,6.23635796,3207.0,3206.6,0.515]
[1765552123765,6.23635796,3207.0,3206.6,1.0008]
[1765552123937,3.11817898,3207.0,3206.6,0.515]
[1765552124264,6.23635796,3207.0,3206.6,0.515]
[1765552124444,6.23635796,3207.0,3206.6,0.4858]
[1765552124645,0.405504,3206.9,3206.1,0.1845]
[1765552124850,0.405504,3206.9,3206.2,0.515]
[1765552125054,0.405504,3206.9,3204.9,0.003]
[1765552125055,0.98597929,3206.7,3205.3,0.4858]
[1765552125277,0.98597929,3206.7,3205.4,0.515]
[1765552125873,0.98597929,3206.7,3205.5,0.4858]
[1765552126266,6.2367469,3206.8,3206.6,0.1845]
[1765552126468,9.35512035,3206.8,3205.5,0.4858]
[1765552126762,0.405504,3206.7,3205.6,0.515]
[1765552126964,0.405504,3206.7,3205.7,0.515]
[1765552126965,9.35570385,3206.6,3205.7,0.515]
[1765552127466,9.35570385,3206.6,3205.7,1.0008]
[1765552127674,6.2371359,3206.6,3205.7,1.0008]
[1765552127970,0.58047529,3207.0,3206.5,0.1845]
[1765552128174,0.58047529,3207.0,3206.6,0.515]
[1765552128175,1.26213917,3207.0,3206.6,0.515]
[1765552128546,0.68166388,3207.0,3206.7,0.4928]
[1765552128744,6.2361635,3207.1,3206.7,0.4928]
[1765552128968,9.35164778,3208.0,3206.7,0.4928]
[1765552129172,0.58047529,3207.9,3206.7,0.4928]
[1765552129376,0.58047529,3207.9,3205.6,3.11953805]
[1765552129377,0.05,3207.7,3205.1,0.1845]
[1765552129553,0.98597929,3207.1,3205.7,0.4928]
[1765552129754,0.405504,3206.8,3205.2,0.4928]
[1765552130165,0.405504,3206.4,3205.3,0.515]
[1765552130474,0.405504,3206.4,3205.4,0.515]
[1765552130853,0.58047529,3206.5,3205.4,0.515]
[1765552131061,0.98597929,3206.6,3205.5,0.4928]
[1765552131972,0.98597929,3206.6,3205.5,3.61243249]
[1765552132174,0.58047529,3206.6,3205.5,0.4928]
[1765552132487,0.58047529,3206.6,3205.6,0.4928]
[1765552132659,0.6,3206.3,3205.6,0.4928]
[1765552133048,0.6,3206.3,3206.2,0.1825]
[1765552133250,3.71885974,3206.3,3206.2,0.6965]
[1765552133479,3.71885974,3206.3,3206.2,0.1825]
[1765552133684,0.6,3206.3,3206.2,1.1893]
[1765552134165,3.71885974,3206.3,3206.2,1.1893]
[1765552134370,0.6,3206.3,3206.2,1.1893]
[1765552135090,3.71885974,3206.3,3206.2,0.6965]
[1765552135388,0.6,3206.3,3206.2,1.1893]
[1765552136186,6.83771948,3206.3,3205.5,0.4928]
[1765552136388,6.83771948,3206.3,3205.6,1.0068]
[1765552136887,3.71885974,3206.3,3206.2,0.1825]
[1765552137053,3.11885974,3206.3,3206.2,0.514]
[1765552137259,3.11885974,3206.3,3206.2,1.0068]
[1765552137458,6.2367469,3206.8,3206.2,1.0068]
[1765552137655,6.23519142,3207.6,3206.3,0.4928]
[1765552137856,3.11759571,3207.6,3206.4,0.41257314]
[1765552138073,3.11759571,3207.6,3206.5,0.4928]
[1765552138291,6.23496977,3207.8,3207.5,0.1825]
[1765552138485,3.11747317,3207.8,3207.6,0.514]
[1765552139156,3.1167212,3208.5,3207.7,0.4928]
[1765552139374,6.55001452,3208.5,3207.7,0.4928]
[1765552139658,9.66673572,3208.5,3207.7,0.4928]
[1765552139864,3.1167212,3208.5,3208.4,0.1825]
[1765552140065,3.11761044,3208.7,3208.4,0.6965]
[1765552140305,3.11761044,3208.7,3207.5,0.1825]
[1765552140306,6.23423329,3208.7,3208.5,0.514]
[1765552140516,0.001,3208.7,3208.5,0.514]
[1765552140680,0.001,3208.7,3208.6,0.4928]
[1765552140887,0.001,3209.1,3208.6,1.0068]
[1765552141104,0.0821,3211.0,3209.4,0.1825]
[1765552141392,0.58047529,3210.8,3209.4,3.29830544]
[1765552141595,1.5810503,3210.8,3209.5,1.33663054]
[1765552141765,9.3431748,3210.9,3209.5,1.33663054]
[1765552141766,6.2287832,3210.9,3209.5,1.33663054]
[1765552141964,0.001,3211.3,3209.8,7.8974504]
[1765552142179,0.001,3211.3,3210.8,0.1825]
[1765552142396,0.001,3211.3,3209.5,0.84383054]
[1765552142397,3.11504996,3211.3,3209.9,0.4928]
[1765552142599,7.8974504,3210.8,3209.1,0.1825]
[1765552142798,0.58047529,3210.5,3209.6,0.514]
[1765552143099,0.405504,3210.4,3209.1,0.1825]
[1765552143307,0.405504,3210.1,3209.2,0.514]
[1765552143618,0.405504,3210.1,3208.5,0.4928]
[1765552143918,0.98597929,3209.7,3208.0,0.4928]
[1765552144062,0.405504,3209.5,3208.2,1.0068]
[1765552144268,0.405504,3209.5,3208.3,0.514]
[1765552144469,0.405504,3209.5,3208.2,0.4928]
[1765552144688,0.405504,3209.5,3208.3,0.514]
[1765552144887,0.405504,3209.5,3208.4,0.514]
[1765552145099,0.21755178,3209.4,3208.4,0.514]
[1765552145303,0.81447529,3209.7,3208.2,0.4928]
[1765552145304,0.98597929,3209.2,3208.2,0.4928]
[1765552145467,3.64412,3209.1,3208.3,0.514]
[1765552145670,0.98597929,3209.2,3208.4,0.514]
[1765552145890,0.98597929,3209.2,3207.7,0.4928]
[1765552146123,1.34997564,3209.1,3207.8,0.514]
[1765552146476,0.405504,3208.8,3207.5,0.1825]
[1765552146674,0.405504,3208.8,3207.6,0.514]
[1765552146873,0.405504,3208.8,3207.5,0.1825]
[1765552146874,0.405504,3208.6,3207.7,0.514]
[1765552147207,6.2334424,3208.5,3207.7,0.514]
[1765552147375,3.1167212,3208.5,3207.7,0.54517498]
[1765552147577,0.405504,3207.4,3206.5,0.1825]
[1765552147876,0.405504,3207.4,3206.3,0.514]
[1765552147877,0.98597929,3207.4,3206.3,0.514]
[1765552148073,0.405504,3207.2,3206.3,0.514]
[1765552148268,0.405504,3207.2,3206.3,1.0068]
[1765552148483,7.8974504,3207.9,3206.4,0.03118762]
[1765552148720,0.98597929,3207.5,3206.5,0.514]
[1765552149014,0.405504,3207.5,3206.6,0.514]
[1765552149185,0.98597929,3207.3,3206.6,0.514]
[1765552149384,0.98597929,3207.3,3205.8,0.4928]
[1765552149385,0.405504,3207.1,3206.2,0.514]
[1765552149973,0.58047529,3207.3,3206.3,0.4928]
[1765552150169,6.233831,3208.3,3207.2,0.1825]
[1765552150602,0.61165207,3208.2,3207.3,0.514]
[1765552150770,6.233831,3208.3,3207.3,0.514]
[1765552150972,6.8572141,3208.3,3207.3,0.514]
[1765552151209,6.8572141,3208.3,3207.4,1.0068]
[1765552151375,9.9741296,3208.3,3207.4,1.0068]
[1765552151783,0.405504,3208.2,3207.4,0.4928]
[1765552152018,0.405504,3208.2,3207.5,1.0068]
[1765552152315,6.8572141,3208.3,3207.5,1.0068]
[1765552152316,6.233831,3208.3,3207.5,1.0068]
[1765552152490,6.233831,3208.3,3207.2,0.1825]
[1765552152491,0.03117678,3208.2,3207.2,0.1825]
[1765552152807,0.43668078,3208.2,3207.3,0.514]
[1765552152970,0.03117678,3208.2,3207.3,1.0068]
[1765552153171,0.78472419,3208.9,3207.3,1.0068]
[1765552153172,0.58047529,3208.5,3207.3,4.12467476]
[1765552153376,3.11662407,3208.6,3207.4,0.92351748]
[1765552153603,3.11662407,3208.6,3207.5,0.4928]
[1765552153986,12.46649628,3208.6,3207.2,0.1825]
[1765552154190,12.46649628,3208.6,3207.3,0.514]
[1765552154191,0.405504,3208.4,3207.3,0.514]
[1765552154387,0.405504,3208.2,3207.3,0.514]
[1765552154592,0.58047529,3208.5,3207.3,1.0068]
[1765552154771,0.58047529,3208.5,3207.4,0.4928]
[1765552154973,0.03117678,3208.4,3207.4,0.4928]
[1765552155219,6.639335,3208.3,3207.4,0.4928]
[1765552155425,6.233831,3208.3,3207.5,0.514]
[1765552155584,9.3507465,3208.3,3207.5,0.514]
[1765552155783,10.72368586,3208.3,3207.4,0.4928]
[1765552156034,10.72368586,3208.3,3207.5,0.514]
[1765552156222,7.60677036,3208.3,3207.5,0.514]
[1765552156524,7.60677036,3208.3,3207.6,0.514]
[1765552156525,9.11750647,3208.2,3207.6,0.514]
[1765552156676,0.98597929,3207.6,3207.0,0.514]
[1765552156883,0.405504,3207.4,3207.0,0.514]
[1765552157076,0.405504,3207.4,3206.5,0.1825]
[1765552157409,0.405504,3207.2,3206.2,0.4928]
[1765552157706,0.405504,3207.2,3206.3,0.514]
[1765552158476,0.717009,3207.2,3206.3,0.514]
[1765552159292,0.405504,3207.0,3206.4,0.513]
[1765552160477,0.405504,3207.0,3206.5,0.513]
[1765552160683,0.98597929,3207.0,3205.7,0.1825]
[1765552161050,0.405504,3206.5,3205.0,0.6386]
[1765552161335,0.98597929,3205.9,3204.7,0.002]
[1765552161481,0.98597929,3205.9,3205.1,0.513]
[1765552161680,0.98597929,3205.9,3204.7,0.002]
[1765552162082,0.405504,3205.5,3204.7,0.002]
[1765552162487,0.98597929,3205.7,3204.7,0.515]
[1765552162815,0.90436073,3205.6,3204.7,0.515]
[1765552162999,0.405504,3205.8,3204.7,0.515]
[1765552163201,0.58047529,3205.9,3205.0,0.4561]
[1765552163401,0.58047529,3206.4,3205.0,3.5762246]
[1765552163602,6.23733042,3206.5,3205.1,0.9691]
[1765552163983,6.23733042,3206.5,3205.2,0.4561]
[1765552165295,3.11885974,3206.3,3205.4,3.11973544]
[1765552165489,3.11885974,3206.3,3204.7,0.002]
[1765552165490,0.58047529,3206.2,3204.7,0.002]
[1765552165791,6.94502397,3207.3,3204.7,0.002]
[1765552165792,0.05,3207.5,3205.3,6.23966554]
[1765552166015,3.11710981,3208.1,3206.5,0.193]
[1765552166234,3.11710981,3208.1,3206.6,0.514]
[1765552166440,3.11710981,3208.1,3206.6,0.9701]
[1765552166642,0.04053885,3208.2,3206.6,1.00128567]
[1765552166815,0.04053885,3208.2,3208.0,0.193]
[1765552167023,6.23111194,3209.7,3208.1,0.514]
[1765552167219,0.93476316,3209.6,3208.1,0.9701]
[1765552167437,6.2319178,3209.8,3208.2,6.2340253]
[1765552167641,6.2319178,3209.8,3208.2,4.08711265]
[1765552167642,9.37855348,3209.8,3208.2,4.08711265]
[1765552167850,9.3473767,3209.8,3208.3,0.9701]
[1765552168050,0.58047529,3209.7,3208.3,0.9701]
[1765552168244,0.58047529,3209.7,3208.4,0.4561]
[1765552168450,0.001,3209.8,3208.4,0.4561]
[1765552169139,0.001,3209.8,3208.5,0.513]
[1765552169328,0.001,3209.8,3208.6,6.23324814]
[1765552169527,0.001,3209.8,3208.6,3.57272407]
[1765552169845,6.85448512,3209.5,3208.0,0.193]
[1765552170038,0.405504,3209.3,3208.1,0.513]
[1765552170349,0.66165207,3209.4,3208.1,0.513]
[1765552170350,0.405504,3209.1,3208.1,0.513]
[1765552170568,0.405504,3208.9,3208.1,0.513]
[1765552170851,0.0688,3209.7,3208.2,0.4561]
[1765552171052,0.405504,3209.5,3208.3,0.513]
[1765552171250,0.475304,3209.8,3208.3,0.513]
[1765552171251,0.03117678,3209.4,3208.3,0.513]
[1765552171455,0.58047529,3209.3,3208.4,0.4561]
[1765552171752,0.58047529,3209.3,3208.0,0.193]
[1765552171951,0.405504,3209.1,3208.1,0.513]
[1765552172252,0.58047529,3209.3,3208.4,3.11681835]
[1765552172455,3.11565304,3209.6,3208.5,0.31168184]
[1765552172631,6.23130608,3209.6,3208.5,0.31168184]
[1765552172960,6.23130608,3209.6,3208.6,0.4561]
[1765552173149,0.6,3209.3,3208.6,0.4561]
[1765552173452,3.71598123,3209.3,3208.6,0.4561]
[1765552173619,3.71598123,3209.3,3208.6,0.81337573]
[1765552173820,0.6,3209.3,3208.6,3.92998416]
[1765552174151,6.83191979,3209.3,3208.6,0.35727573]
[1765552174355,6.83191979,3209.3,3208.3,0.4561]
[1765552174652,1.17005607,3209.2,3207.6,0.193]
[1765552174951,1.01715607,3209.2,3207.7,0.9691]
[1765552175155,0.405504,3208.9,3207.6,0.193]
[1765552175353,0.405504,3208.9,3207.2,0.4561]
[1765552175354,13.10067342,3207.6,3205.9,3.57532557]
[1765552175529,0.405504,3207.4,3206.0,0.514]
[1765552175849,0.98597929,3207.0,3206.0,0.514]
[1765552176056,0.405504,3207.0,3206.0,0.514]
[1765552176349,0.98597929,3207.1,3206.0,0.514]
[1765552176551,0.405504,3207.1,3206.0,0.514]
[1765552176764,0.405504,3207.4,3206.0,0.9701]
[1765552177084,6.23519142,3207.6,3206.1,0.86503224]
[1765552177418,9.75741645,3207.9,3206.2,0.4561]
[1765552177730,0.405504,3207.7,3206.2,0.4561]
[1765552177916,0.405504,3207.7,3206.3,0.514]
[1765552178118,0.405504,3207.5,3206.3,0.514]
[1765552178321,0.405504,3207.5,3206.4,0.514]
[1765552178655,0.405504,3207.3,3206.4,0.514]
[1765552178835,0.405504,3207.5,3206.4,0.514]
[1765552179221,0.405504,3207.7,3206.4,0.514]
[1765552179451,9.35395359,3207.2,3206.4,0.514]
[1765552179652,0.405504,3207.0,3206.4,0.514]
[1765552180358,0.58047529,3207.1,3206.4,0.514]
[1765552180542,0.58047529,3207.1,3205.5,0.4561]
[1765552180543,0.405504,3207.0,3205.5,0.4561]
[1765552180740,0.405504,3207.0,3206.1,0.514]
[1765552181581,6.23655242,3206.9,3206.1,0.9701]
[1765552181987,6.23655242,3206.9,3206.2,0.4561]
[1765552182170,6.23655242,3206.9,3206.1,0.514]
[1765552182570,9.35482863,3206.9,3206.1,0.514]
[1765552182889,6.23655242,3206.9,3206.1,0.514]
[1765552183292,1.20413053,3206.8,3206.1,0.514]
[1765552183598,0.58047529,3206.6,3206.1,0.514]
[1765552184186,0.58047529,3206.6,3206.1,0.9701]
[1765552184496,2.17231897,3209.3,3206.5,0.193]
[1765552184497,0.405504,3207.2,3206.5,0.193]
[1765552184795,9.35369792,3207.3,3206.2,0.4561]
[1765552184996,0.93536979,3207.2,3206.2,0.4561]
[1765552185197,0.405504,3207.1,3205.7,0.4561]
[1765552185406,0.405504,3207.1,3205.8,0.513]
[1765552185696,0.405504,3207.1,3205.2,0.193]
[1765552185697,6.23635796,3207.0,3205.9,0.9691]
[1765552186106,6.23635796,3207.0,3206.0,0.4561]
[1765552186403,3.11810866,3207.1,3206.0,0.4561]
[1765552186899,0.05,3208.1,3207.0,0.193]
[1765552186900,6.23499702,3207.7,3207.0,0.193]
[1765552187098,6.23499702,3207.7,3207.1,0.513]
[1765552187099,6.85849672,3207.7,3207.1,0.513]
[1765552187407,6.85849672,3207.7,3205.8,0.4561]
[1765552187408,0.76455207,3207.6,3205.8,0.4561]
[1765552187601,0.76455207,3207.6,3205.9,0.513]
[1765552187602,0.405504,3207.3,3205.9,0.513]
[1765552187900,0.405504,3207.1,3205.9,0.513]
[1765552188101,0.03117678,3207.0,3206.0,0.4561]
[1765552188303,0.03117678,3207.0,3205.9,0.513]
[1765552188469,0.03117678,3207.0,3205.9,0.9689]
[1765552188679,0.58047529,3207.4,3205.9,0.9689]
[1765552188882,0.58047529,3207.4,3206.0,0.4559]
[1765552188883,0.405504,3207.2,3206.0,0.4559]
[1765552189109,0.9933554,3207.3,3206.0,0.4559]
[1765552189110,0.405504,3207.3,3206.0,0.4559]
[1765552189493,6.23596906,3207.2,3206.1,3.1190543]
[1765552189924,3.11798453,3207.2,3206.2,0.4559]
[1765552190221,6.23596906,3207.2,3206.3,0.513]
[1765552190390,6.23596906,3207.2,3206.3,0.92179543]
[1765552190588,6.23596906,3207.2,3206.4,0.4559]
[1765552190817,3.11798453,3207.2,3206.4,0.4559]
[1765552191116,3.11785547,3207.4,3206.5,0.1829]
[1765552191319,9.35356641,3207.4,3206.6,0.513]
[1765552191533,7.17106758,3207.4,3206.6,0.513]
[1765552191717,6.23571094,3207.4,3206.6,0.9689]
[1765552192125,3.11785547,3207.4,3206.7,0.4559]
[1765552192424,3.11767844,3207.6,3206.7,0.4559]
[1765552192592,0.6659,3208.5,3206.7,0.4559]
[1765552192593,3.11730415,3207.9,3206.7,0.4559]
[1765552192926,3.11681835,3208.4,3206.7,0.4559]
[1765552193142,3.11681835,3208.4,3207.8,0.1829]
[1765552193363,3.11681835,3208.4,3207.9,0.513]
[1765552193364,0.03117678,3208.3,3207.9,0.513]
[1765552193497,0.03117678,3208.3,3206.8,1.34431575]
[1765552193498,0.58047529,3208.1,3207.7,0.513]
[1765552194214,6.2340253,3208.2,3207.7,0.513]
[1765552194929,6.2340253,3208.2,3207.8,0.4559]
[1765552195229,0.0688,3207.8,3207.3,0.513]
[1765552195621,3.11749851,3207.7,3207.3,0.513]
[1765552195823,0.62340253,3208.2,3207.3,0.513]
[1765552195824,3.11720698,3208.0,3207.4,0.4559]
[1765552196022,6.23443383,3208.0,3207.4,0.4559]
[1765552196249,0.03117678,3207.9,3207.1,0.1829]
[1765552196453,9.97510406,3208.0,3207.2,0.513]
[1765552196629,9.97510406,3208.0,3207.2,0.9689]
[1765552196630,6.23443383,3208.0,3207.2,0.9689]
[1765552196834,6.23443383,3208.0,3207.3,0.4559]
[1765552196835,3.11720698,3208.0,3207.3,0.4559]
[1765552197043,6.23443383,3208.0,3207.3,0.4559]
[1765552197550,0.58047529,3208.7,3207.3,0.4559]
[1765552197753,0.03117678,3208.6,3207.3,0.4559]
[1765552197955,0.58047529,3208.7,3207.3,0.4559]
[1765552198121,1.74130023,3208.6,3207.3,0.4559]
[1765552199443,1.71012345,3208.6,3207.4,0.512]
[1765552199647,6.2334424,3208.5,3207.4,0.512]
[1765552199826,6.2334424,3208.5,3207.5,0.4559]
[1765552200030,3.11642675,3208.9,3208.4,0.1829]
[1765552200358,3.11642675,3208.9,3208.2,0.512]
[1765552200359,9.34928025,3208.9,3208.2,0.512]
[1765552200563,0.31164267,3208.8,3208.2,0.512]
[1765552200765,0.001,3209.2,3208.8,0.1829]
[1765552201132,3.11451739,3210.8,3208.9,0.4559]
[1765552201463,0.58047529,3211.0,3208.9,0.4559]
[1765552201762,0.0851,3209.9,3209.0,0.512]
[1765552201948,12.49825457,3210.9,3209.0,0.512]
[1765552202262,0.61165207,3210.8,3209.1,0.4559]
[1765552202435,0.0851,3209.9,3209.2,0.513]
[1765552202832,0.0851,3209.9,3209.1,0.513]
[1765552202833,0.405504,3209.7,3209.1,0.513]
[1765552203028,0.405504,3209.5,3209.1,0.513]
[1765552203228,0.405504,3209.3,3209.1,0.513]